bitfinex/quotes_SOLUSD_20240809
["timestamp","ask_amount","ask_price","bid_price","bid_amount"]
[1723228251461,35.4552,152.55,152.5,6.557]
[1723228251664,35.4552,152.55,152.51,6.5569]
[1723228251875,43.7452,152.55,152.51,6.5569]
[1723228252082,37.19,152.55,152.49,6.5868]
[1723228252378,43.7435,152.59,152.54,6.5555]
[1723228252574,26.554,152.58,152.5,0.12549]
[1723228252877,26.554,152.58,152.5,45.37647]
[1723228253046,26.554,152.58,152.54,6.5556]
[1723228253249,6.5544,152.57,152.52,6.5564]
[1723228253580,43.7444,152.57,152.52,6.5564]
[1723228253768,43.7444,152.57,152.53,6.5559]
[1723228253769,37.19,152.57,152.53,6.5559]
[1723228254145,37.19,152.57,152.54,6.5556]
[1723228254459,37.19,152.57,152.5,0.25098]
[1723228254659,37.19,152.57,152.5,45.25098]
[1723228255177,43.7445,152.57,152.52,6.5561]
[1723228255359,37.19,152.57,152.53,6.556]
[1723228255973,20.0,152.58,152.54,6.5555]
[1723228256373,26.5539,152.58,152.53,6.556]
[1723228256883,6.5552,152.56,152.51,6.5568]
[1723228257073,37.19,152.57,152.5,0.12549]
[1723228257295,20.0,152.58,152.49,6.5868]
[1723228257498,6.5547,152.57,152.51,6.5565]
[1723228257795,6.5554,152.55,152.5,6.557]
[1723228258000,43.7447,152.57,152.51,6.5567]
[1723228258296,43.7447,152.57,152.49,6.5868]
[1723228258472,43.7447,152.57,152.52,6.5563]
[1723228258674,6.5548,152.56,152.51,6.5568]
[1723228258875,37.19,152.57,152.5,0.12549]
[1723228259089,37.19,152.57,152.5,45.25098]
[1723228259293,37.19,152.57,152.53,6.556]
[1723228259479,6.555,152.56,152.51,6.5565]
[1723228260177,37.19,152.57,152.5,45.25098]
[1723228260401,37.19,152.57,152.5,0.12549]
[1723228260694,43.7444,152.57,152.5,0.12549]
[1723228260904,6.5549,152.56,152.51,6.5568]
[1723228261094,6.5549,152.56,152.52,6.5565]
[1723228261276,37.19,152.57,152.52,6.5565]
[1723228261480,43.7445,152.57,152.52,6.5565]
[1723228262192,37.19,152.57,152.5,0.25098]
[1723228262380,37.19,152.57,152.51,0.12549]
[1723228262578,37.19,152.57,152.5,45.25098]
[1723228262783,37.19,152.57,152.5,0.12549]
[1723228262984,6.5551,152.56,152.52,6.5564]
[1723228263183,6.81135428,152.6,152.5,1.56212621]
[1723228263396,20.0,152.59,152.51,0.25098]
[1723228263706,20.0,152.59,152.56,6.5544]
[1723228264001,20.0,152.59,152.52,1.43622269]
[1723228264307,20.0,152.59,152.53,0.12549]
[1723228264475,20.0,152.59,152.54,6.5555]
[1723228264674,43.744,152.58,152.53,6.5559]
[1723228265202,37.19,152.58,152.52,6.5564]
[1723228265379,20.0,152.59,152.53,1.31105063]
[1723228265582,20.0,152.59,152.54,0.12549]
[1723228265905,37.19,152.62,152.58,6.5538]
[1723228266110,21.9867,152.63,152.58,6.5538]
[1723228266485,6.5523,152.62,152.57,6.5542]
[1723228266695,6.5531,152.6,152.55,6.5551]
[1723228267215,6.5526,152.61,152.56,1.31073314]
[1723228267502,37.19,152.65,152.57,0.12549]
[1723228267700,6.5513,152.64,152.57,0.12549]
[1723228267918,43.7409,152.65,152.6,6.553]
[1723228268410,22.25239023,152.67,152.58,1.31036467]
[1723228268596,53.4507,152.71,152.59,37.69196]
[1723228268801,53.4507,152.71,152.62,0.12549]
[1723228268983,59.9994,152.71,152.66,6.5504]
[1723228269181,6.5492,152.69,152.64,6.5509]
[1723228269401,53.4507,152.71,152.62,0.37647]
[1723228269595,59.9993,152.71,152.65,6.5508]
[1723228269792,6.5489,152.7,152.65,6.5508]
[1723228270309,6.5489,152.7,152.63,0.12549]
[1723228270310,53.4507,152.71,152.66,7.8602656]
[1723228270622,43.7384,152.71,152.66,6.5504]
[1723228270793,6.5484,152.71,152.67,1.30983234]
[1723228271001,43.7377,152.73,152.68,1.30971677]
[1723228271201,6.80818897,152.74,152.68,1.30971677]
[1723228271202,6.5471,152.74,152.68,1.30971677]
[1723228271506,10.25858301,152.78,152.71,6.5483]
[1723228271507,38.0190575,152.77,152.71,6.5483]
[1723228272292,38.0190575,152.77,152.72,1.30939276]
[1723228272611,0.3290575,152.77,152.74,6.547]
[1723228272815,0.3290575,152.77,152.75,1.30911336]
[1723228272994,0.3290575,152.77,152.76,6.5462]
[1723228273196,0.3290575,152.77,152.76,6.67169]
[1723228273686,0.3290575,152.77,152.75,6.5465]
[1723228273886,0.3290575,152.77,152.73,6.0835]
[1723228273887,0.3290575,152.77,152.76,7.85517643]
[1723228274113,0.3290575,152.77,152.76,6.67169]
[1723228274336,0.3290575,152.77,152.76,6.79718]
[1723228274485,0.3290575,152.77,152.76,52.04816]
[1723228274886,0.3290575,152.77,152.76,53.3565974]
[1723228275487,0.3290575,152.77,152.76,52.04816]
[1723228276013,0.3290575,152.77,152.76,6.5462]
[1723228277327,0.3290575,152.77,152.76,7.85483073]
[1723228277489,0.3290575,152.77,152.76,52.98032073]
[1723228277689,0.3290575,152.77,152.76,53.35679073]
[1723228278188,32.4655,152.91,152.76,53.35679073]
[1723228278189,6.81423705,152.9,152.78,15.21229]
[1723228278395,43.7298,152.91,152.85,6.5422]
[1723228279110,37.19,152.91,152.82,0.12549]
[1723228279317,37.19,152.91,152.86,6.5415]
[1723228279619,43.7298,152.91,152.82,0.37647]
[1723228279792,43.7298,152.91,152.86,6.5415]
[1723228280900,43.7298,152.91,152.82,7.92760299]
[1723228280901,0.8290575,152.92,152.87,1.30808304]
[1723228281107,0.8290575,152.92,152.84,0.12549]
[1723228281304,37.19,152.91,152.84,0.37647]
[1723228281514,37.19,152.91,152.86,6.5419]
[1723228281716,37.19,152.91,152.87,6.5414]
[1723228282024,6.5398,152.91,152.86,6.5418]
[1723228282202,0.8290575,152.92,152.84,0.37647]
[1723228282203,6.5402,152.9,152.84,6.91877]
[1723228282412,0.8290575,152.92,152.84,0.37647]
[1723228282726,0.8290575,152.92,152.85,0.12549]
[1723228283021,0.8290575,152.92,152.87,6.5414]
[1723228283232,0.8290575,152.92,152.88,0.12549]
[1723228283400,0.8290575,152.92,152.91,6.5397]
[1723228283603,0.8290575,152.92,152.91,51.91617]
[1723228284013,0.8290575,152.92,152.91,52.04166]
[1723228285002,0.8290575,152.92,152.86,21.8188]
[1723228285324,7.3687575,152.92,152.87,6.5411]
[1723228285527,6.5399,152.91,152.82,21.9728]
[1723228285826,38.0190575,152.92,152.87,6.5413]
[1723228286024,37.19,152.9,152.84,6.5424]
[1723228286204,38.0190575,152.92,152.82,21.9728]
[1723228286407,0.8290575,152.92,152.84,37.19]
[1723228286600,0.8290575,152.92,152.91,6.5397]
[1723228287196,0.8290575,152.92,152.85,0.12549]
[1723228287395,0.8290575,152.92,152.9,6.5401]
[1723228287635,0.8290575,152.92,152.91,0.12549]
[1723228287927,0.8290575,152.92,152.82,21.9728]
[1723228288107,37.19,152.91,152.82,21.9728]
[1723228288427,6.5414,152.88,152.82,12.7862]
[1723228288612,6.5414,152.88,152.83,6.5428]
[1723228288816,6.5414,152.88,152.82,6.243]
[1723228288817,16.8662575,152.92,152.82,6.243]
[1723228289012,37.19,152.9,152.82,6.243]
[1723228290230,37.19,152.9,152.83,0.12549]
[1723228290399,37.19,152.86,152.78,21.6312]
[1723228290726,0.12549,152.91,152.78,6.541]
[1723228290727,37.19,152.84,152.78,6.541]
[1723228290926,43.7328,152.84,152.78,13.0859]
[1723228291100,37.19,152.84,152.77,6.5457]
[1723228291303,43.7338,152.82,152.77,6.5457]
[1723228291605,37.19,152.82,152.78,6.5452]
[1723228291904,37.19,152.82,152.74,6.0965]
[1723228292324,37.19,152.82,152.75,6.5462]
[1723228292927,37.19,152.84,152.74,6.0965]
[1723228293232,43.732,152.86,152.8,6.5444]
[1723228293524,37.19,152.84,152.79,6.5449]
[1723228293824,37.19,152.84,152.8,6.5442]
[1723228294003,37.19,152.84,152.79,6.5448]
[1723228294806,43.7319,152.86,152.76,0.12549]
[1723228295021,6.5423,152.85,152.8,6.5444]
[1723228296032,6.5432,152.83,152.78,6.5453]
[1723228296340,6.6051,152.87,152.75,6.5466]
[1723228296341,43.7345,152.8,152.75,6.5466]
[1723228296919,37.19,152.8,152.76,6.5461]
[1723228297928,21.577,152.79,152.61,6.58]
[1723228298131,37.19,152.75,152.65,0.03935328]
[1723228298309,6.547,152.74,152.63,6.2973]
[1723228299210,6.5475,152.73,152.63,6.2973]
[1723228299413,6.5481,152.72,152.63,6.2973]
[1723228299616,43.7387,152.7,152.63,6.2973]
[1723228299936,81.48909,152.78,152.59,6.0592]
[1723228300111,43.7371,152.74,152.62,37.19]
[1723228300315,6.5471,152.74,152.62,37.19]
[1723228300505,81.48909,152.78,152.59,6.0592]
[1723228300506,26.5454,152.78,152.66,37.19]
[1723228300824,26.5454,152.78,152.6,20.0]
[1723228300825,253.2,152.8,152.69,6.3159]
[1723228301031,37.19,152.81,152.7,38.4991998]
[1723228301211,37.19,152.81,152.71,0.25098]
[1723228301529,6.5448,152.8,152.71,45.37647]
[1723228301730,6.5441,152.81,152.71,46.6856555]
[1723228301910,51.729,152.83,152.71,0.37647]
[1723228302231,6.5441,152.81,152.71,1.68563734]
[1723228302412,6.5436,152.82,152.72,0.12549]
[1723228302616,6.5436,152.82,152.74,0.12549]
[1723228302821,6.5442,152.81,152.73,0.25098]
[1723228303211,6.5435,152.83,152.75,0.12549]
[1723228303709,6.5435,152.83,152.75,0.25098]
[1723228303912,6.5437,152.82,152.76,0.12549]
[1723228304129,6.544,152.81,152.76,0.12549]
[1723228304446,45.43549,152.83,152.6,27.5998166]
[1723228304729,6.5462,152.76,152.67,16.0657]
[1723228304906,6.5472,152.74,152.67,16.0657]
[1723228305222,6.5471,152.74,152.67,16.0657]
[1723228305427,6.5466,152.76,152.67,16.0657]
[1723228305630,6.5466,152.75,152.67,16.0657]
[1723228306536,45.31,152.8,152.67,16.0657]
[1723228306713,20.0,152.79,152.68,1.30957264]
[1723228307335,6.5456,152.78,152.68,1.30957264]
[1723228307505,6.5456,152.78,152.7,45.50196]
[1723228308111,45.31,152.8,152.7,45.50196]
[1723228308314,6.5451,152.79,152.7,45.50196]
[1723228308933,6.5461,152.77,152.7,45.37647]
[1723228309108,6.5461,152.77,152.7,45.25098]
[1723228309313,6.545,152.79,152.71,0.12549]
[1723228310331,6.545,152.79,152.71,0.25098]
[1723228310538,6.545,152.79,152.72,0.12549]
[1723228311031,51.8545,152.8,152.72,0.25098]
[1723228311344,6.5449,152.79,152.72,0.25098]
[1723228311540,6.5454,152.78,152.72,0.25098]
[1723228312120,52.13166845,152.83,152.72,1.56016647]
[1723228312476,6.5443,152.81,152.74,0.12549]
[1723228312935,6.5445,152.8,152.74,0.25098]
[1723228313236,6.5441,152.81,152.74,0.25098]
[1723228313423,6.5441,152.81,152.74,1.56000104]
[1723228313626,6.5441,152.81,152.74,0.25098]
[1723228313818,6.5441,152.81,152.74,1.5600017]
[1723228314019,6.5441,152.81,152.74,0.25098]
[1723228314421,45.31,152.83,152.74,0.12549]
[1723228314637,6.5453,152.78,152.74,0.12549]
[1723228314933,6.5458,152.77,152.69,6.3159]
[1723228315136,45.31,152.8,152.69,6.3159]
[1723228315328,6.5462,152.76,152.69,6.3159]
[1723228315513,6.5458,152.77,152.69,6.3159]
[1723228316136,6.5462,152.76,152.69,6.3159]
[1723228316442,6.5462,152.76,152.7,0.25098]
[1723228316626,6.5462,152.76,152.71,0.25098]
[1723228316827,6.5457,152.78,152.71,0.25098]
[1723228318731,6.5458,152.77,152.71,0.25098]
[1723228319625,6.5454,152.78,152.71,0.25098]
[1723228320340,6.5458,152.77,152.71,0.25098]
[1723228320640,6.5471,152.74,152.7,45.0]
[1723228320845,45.31,152.77,152.69,6.3159]
[1723228321035,6.5469,152.75,152.7,0.12549]
[1723228321228,45.31,152.77,152.69,6.3159]
[1723228321441,6.5475,152.73,152.69,6.3159]
[1723228321630,6.5475,152.73,152.67,16.0657]
[1723228321950,45.31,152.74,152.67,16.0657]
[1723228322242,6.5467,152.75,152.67,16.0657]
[1723228322441,45.31,152.77,152.68,1.30953007]
[1723228322843,45.31,152.77,152.69,0.12549]
[1723228323045,45.31,152.77,152.68,45.50196]
[1723228323046,6.5467,152.75,152.68,45.50196]
[1723228323232,45.31,152.74,152.67,16.0657]
[1723228323442,6.5479,152.72,152.67,16.0657]
[1723228323753,0.12549,152.79,152.66,6.0501]
[1723228323754,37.12,152.7,152.66,6.0501]
[1723228324346,43.6687,152.7,152.66,6.0501]
[1723228324558,37.12,152.7,152.66,6.0501]
[1723228324735,37.12,152.72,152.66,6.0501]
[1723228325622,43.668,152.72,152.66,6.0501]
[1723228325827,37.12,152.72,152.66,6.0501]
[1723228326335,37.12,152.72,152.67,1.30976397]
[1723228326529,37.12,152.72,152.66,6.0501]
[1723228326729,37.12,152.72,152.67,0.12549]
[1723228327033,43.6663,152.76,152.67,1.56069275]
[1723228327238,43.6663,152.76,152.69,0.12549]
[1723228327431,43.6663,152.76,152.69,0.25098]
[1723228327622,6.5467,152.75,152.69,0.25098]
[1723228327827,52.3801,152.8,152.66,6.0501]
[1723228327828,37.12,152.72,152.66,6.0501]
[1723228328236,43.6671,152.74,152.67,45.25098]
[1723228328429,43.6671,152.74,152.67,45.37647]
[1723228328639,37.12,152.74,152.67,45.37647]
[1723228328836,15.2601,152.8,152.69,0.12549]
[1723228329035,6.5458,152.77,152.69,0.37647]
[1723228329234,6.5458,152.77,152.69,0.25098]
[1723228329437,6.5458,152.77,152.7,0.37647]
[1723228330051,6.5458,152.77,152.7,16.63187]
[1723228330264,15.8434,152.84,152.73,0.12549]
[1723228330439,37.12,152.78,152.72,6.1904]
[1723228330758,37.12,152.78,152.7,16.2554]
[1723228330759,37.12,152.76,152.7,16.2554]
[1723228331371,43.6648,152.8,152.71,1.30941516]
[1723228331535,43.6637,152.82,152.71,1.30941516]
[1723228332145,43.6637,152.82,152.72,0.50196]
[1723228332364,43.6637,152.82,152.75,6.0316]
[1723228332365,37.12,152.82,152.75,6.0316]
[1723228332663,37.12,152.82,152.76,1.43437519]
[1723228332971,37.12,152.82,152.77,1.30886672]
[1723228333546,43.6637,152.82,152.77,1.30886672]
[1723228333862,6.5445,152.8,152.76,0.12549]
[1723228334041,43.6645,152.8,152.76,0.12549]
[1723228334733,37.12,152.8,152.76,0.12549]
[1723228335338,37.12,152.82,152.76,45.25098]
[1723228335857,37.12,152.82,152.77,1.30887863]
[1723228337157,43.6636,152.82,152.76,45.25098]
[1723228338034,37.12,152.82,152.76,45.25098]
[1723228338234,6.5432,152.83,152.76,45.25098]
[1723228338235,6.5432,152.83,152.76,46.5597964]
[1723228338555,6.82015041,152.86,152.78,15.44969]
[1723228338855,43.6616,152.87,152.79,46.5596029]
[1723228339160,43.6616,152.87,152.8,1.30854994]
[1723228339347,37.12,152.87,152.81,0.12549]
[1723228339553,6.542,152.86,152.82,6.1148]
[1723228340364,37.12,152.83,152.79,45.12549]
[1723228340535,37.12,152.81,152.78,21.8251]
[1723228340740,16.3535,152.88,152.78,21.8251]
[1723228340954,37.12,152.82,152.78,21.8251]
[1723228341741,37.12,152.84,152.79,45.12549]
[1723228342045,37.12,152.82,152.78,21.8251]
[1723228342445,37.12,152.84,152.79,0.12549]
[1723228342767,43.6629,152.84,152.79,0.25098]
[1723228343447,43.6628,152.84,152.78,21.8251]
[1723228343961,37.12,152.84,152.78,21.8251]
[1723228344261,6.5422,152.86,152.78,21.8251]
[1723228344464,37.12,152.84,152.78,21.8251]
[1723228344650,37.12,152.84,152.79,0.25098]
[1723228345261,43.6628,152.84,152.79,0.12549]
[1723228345568,37.12,152.82,152.78,21.8251]
[1723228347461,37.12,152.8,152.74,22.254]
[1723228347660,37.12,152.78,152.74,22.254]
[1723228347886,16.3577,152.84,152.69,15.8984]
[1723228347887,43.6662,152.76,152.69,15.8984]
[1723228348164,37.12,152.74,152.69,15.8984]
[1723228348458,37.12,152.74,152.66,6.3556]
[1723228348459,37.12,152.7,152.66,6.3556]
[1723228350545,37.12,152.74,152.67,1.30975293]
[1723228350866,20.25098,152.73,152.62,6.0928]
[1723228351175,37.12,152.68,152.62,6.0928]
[1723228351350,37.12,152.7,152.62,6.0928]
[1723228351740,37.12,152.72,152.63,1.30979966]
[1723228352068,37.12,152.74,152.63,1.30979966]
[1723228352257,37.12,152.74,152.64,0.37647]
[1723228352448,37.12,152.74,152.65,0.12549]
[1723228352764,37.12,152.74,152.65,0.25098]
[1723228352963,37.12,152.74,152.66,0.37647]
[1723228353265,37.12,152.74,152.67,0.25098]
[1723228353761,37.12,152.74,152.68,0.37647]
[1723228353959,37.12,152.74,152.68,0.12549]
[1723228354476,37.12,152.74,152.69,0.12549]
[1723228354644,37.12,152.74,152.69,45.50196]
[1723228355066,37.12,152.76,152.69,45.50196]
[1723228355275,43.6654,152.78,152.7,7.60209617]
[1723228355560,37.12,152.76,152.71,0.12549]
[1723228355779,43.6662,152.76,152.71,0.12549]
[1723228356143,37.12,152.76,152.71,0.12549]
[1723228356540,37.12,152.76,152.7,6.2927]
[1723228357157,43.6671,152.74,152.7,6.2927]
[1723228357360,37.12,152.74,152.7,6.2927]
[1723228357542,43.6671,152.74,152.7,6.2927]
[1723228358047,37.12,152.74,152.7,6.2927]
[1723228359567,37.12,152.76,152.7,6.2927]
[1723228360768,37.12,152.76,152.71,0.12549]
[1723228361969,43.6653,152.78,152.71,0.12549]
[1723228362666,6.5458,152.77,152.71,0.12549]
[1723228363749,37.12,152.78,152.71,45.37647]
[1723228363954,37.12,152.78,152.71,46.68587356]
[1723228364165,6.5452,152.79,152.71,46.68587356]
[1723228364667,37.12,152.8,152.71,46.68574346]
[1723228364861,37.12,152.8,152.72,0.25098]
[1723228365065,37.12,152.8,152.73,0.25098]
[1723228365570,43.6646,152.8,152.73,0.25098]
[1723228368357,6.5449,152.79,152.73,0.25098]
[1723228369074,43.6645,152.8,152.73,0.25098]
[1723228369386,6.545,152.79,152.73,0.25098]
[1723228369686,35.385,152.79,152.73,0.25098]
[1723228370663,6.5445,152.8,152.73,0.25098]
[1723228370858,28.84,152.8,152.74,0.25098]
[1723228371086,35.3846,152.8,152.75,0.12549]
[1723228371465,28.84,152.8,152.75,0.25098]
[1723228371973,35.3846,152.8,152.75,0.25098]
[1723228372380,35.3846,152.8,152.75,0.12549]
[1723228372687,28.84,152.8,152.75,0.12549]
[1723228372856,35.384,152.82,152.76,15.9552]
[1723228373064,28.84,152.82,152.77,1.30901282]
[1723228374083,28.84,152.82,152.78,0.12549]
[1723228374489,391.01957085,152.87,152.78,7.5655325]
[1723228374666,419.5818,152.87,152.79,0.37647]
[1723228374866,419.5816,152.87,152.8,1.3085296]
[1723228375096,419.5816,152.87,152.81,0.25098]
[1723228376294,419.5816,152.87,152.82,0.12549]
[1723228378874,35.3816,152.87,152.82,0.12549]
[1723228380799,28.84,152.83,152.78,6.0057]
[1723228381400,28.84,152.81,152.78,6.0057]
[1723228381910,6.5445,152.8,152.78,6.0057]
[1723228382268,35.3841,152.81,152.76,15.9552]
[1723228382476,6.5446,152.8,152.76,15.9552]
[1723228382785,28.84,152.81,152.76,15.9552]
[1723228384490,35.3841,152.81,152.76,15.9552]
[1723228385784,6.5441,152.81,152.76,15.9552]
[1723228385990,28.84,152.8,152.76,15.9552]
[1723228386684,28.84,152.8,152.77,0.12549]
[1723228387095,28.84,152.82,152.77,0.12549]
[1723228387285,6.5431,152.84,152.77,45.37647]
[1723228387604,28.84,152.83,152.77,45.37647]
[1723228388192,45.193,152.88,152.76,15.9552]
[1723228388193,28.84,152.81,152.76,15.9552]
[1723228388392,6.5445,152.8,152.76,15.9552]
[1723228388594,28.84,152.79,152.74,6.2768]
[1723228388790,35.3853,152.79,152.74,6.2768]
[1723228389119,28.84,152.79,152.74,6.2768]
[1723228390195,28.84,152.79,152.75,0.12549]
[1723228390597,28.84,152.79,152.74,6.2768]
[1723228391993,28.84,152.77,152.72,16.3848]
[1723228393418,28.84,152.75,152.7,6.1117]
[1723228393715,28.84,152.8,152.66,6.2606]
[1723228393716,28.84,152.71,152.66,6.2606]
[1723228394020,28.84,152.7,152.66,6.2606]
[1723228397310,28.84,152.72,152.66,6.2606]
[1723228397610,28.84,152.7,152.66,6.2606]
[1723228400602,28.84,152.72,152.66,6.2606]
[1723228402593,35.3879,152.72,152.66,6.2606]
[1723228405131,28.84,152.72,152.66,6.2606]
[1723228405722,28.84,152.72,152.67,0.12549]
[1723228406515,6.80204391,152.76,152.67,0.12549]
[1723228406728,28.84,152.74,152.67,45.37647]
[1723228407611,6.5475,152.73,152.67,45.37647]
[1723228408619,6.5488,152.7,152.66,6.2606]
[1723228408829,28.84,152.7,152.66,6.2606]
[1723228411122,6.80169208,152.76,152.66,6.2606]
[1723228411123,28.84,152.72,152.66,6.2606]
[1723228411334,28.84,152.74,152.67,45.50196]
[1723228411495,6.80169208,152.76,152.69,0.12549]
[1723228411496,35.3863,152.76,152.69,0.12549]
[1723228411817,28.84,152.76,152.69,1.68600408]
[1723228412030,28.84,152.76,152.69,1.81149408]
[1723228412321,28.84,152.76,152.69,1.68600408]
[1723228413390,35.3857,152.78,152.7,16.2576]
[1723228413598,6.8007776,152.8,152.72,6.055]
[1723228413795,28.84,152.81,152.73,46.6856145]
[1723228414000,28.84,152.81,152.74,1.30914319]
[1723228414218,35.3843,152.81,152.74,1.30914319]
[1723228414418,28.84,152.81,152.74,1.30914319]
[1723228414720,6.5447,152.8,152.74,1.30914319]
[1723228415215,35.3841,152.81,152.75,0.12549]
[1723228415618,6.5445,152.8,152.75,0.12549]
[1723228415812,6.5445,152.8,152.74,0.12549]
[1723228418014,6.5449,152.79,152.74,0.12549]
[1723228418808,6.5445,152.8,152.75,15.8554]
[1723228419519,6.5449,152.79,152.75,15.8554]
[1723228419707,35.3849,152.79,152.75,15.8554]
[1723228421402,28.84,152.79,152.75,15.8554]
[1723228421726,6.79855241,152.84,152.76,0.12549]
[1723228421895,35.3826,152.85,152.76,46.81112315]
[1723228422094,35.3826,152.85,152.77,1.30880053]
[1723228422301,35.3826,152.85,152.78,0.37647]
[1723228422599,6.542,152.86,152.79,6.4503]
[1723228422800,6.542,152.86,152.8,1.43420435]
[1723228422999,28.84,152.87,152.8,1.43420435]
[1723228423000,35.3816,152.87,152.8,1.43420435]
[1723228423214,35.3816,152.87,152.8,46.43420435]
[1723228423814,28.84,152.89,152.81,1.559603]
[1723228424016,28.84,152.89,152.83,15.6523]
[1723228424636,35.3809,152.89,152.83,15.6523]
[1723228425525,35.3809,152.89,152.84,0.12549]
[1723228425910,6.5412,152.88,152.84,0.12549]
[1723228426220,28.84,152.87,152.83,15.6523]
[1723228426429,35.3826,152.85,152.8,45.0]
[1723228426613,35.3826,152.85,152.79,22.87249]
[1723228426926,20.0,152.91,152.79,22.747]
[1723228426927,35.3832,152.83,152.79,22.747]
[1723228427624,28.84,152.83,152.79,22.747]
[1723228427831,28.84,152.81,152.79,22.747]
[1723228428901,28.84,152.83,152.79,22.747]
[1723228429102,28.84,152.85,152.79,22.747]
[1723228429317,28.84,152.85,152.8,0.12549]
[1723228429713,35.3826,152.85,152.79,22.747]
[1723228429922,28.84,152.87,152.8,0.12549]
[1723228430210,28.84,152.87,152.8,45.50196]
[1723228430835,35.3811,152.88,152.8,45.50196]
[1723228431404,28.84,152.88,152.8,46.81051233]
[1723228431705,35.3803,152.9,152.8,46.81051233]
[1723228431905,6.5406,152.89,152.8,46.81051233]
[1723228432127,6.5406,152.89,152.8,45.50196]
[1723228434621,6.5406,152.89,152.8,46.81031233]
[1723228435539,6.5406,152.89,152.8,45.50196]
[1723228435738,35.3802,152.9,152.8,45.50196]
[1723228436211,6.5407,152.89,152.8,45.50196]
[1723228437222,35.3803,152.9,152.8,45.50196]
[1723228438308,6.5406,152.89,152.8,45.50196]
[1723228438506,6.5406,152.89,152.82,0.12549]
[1723228438730,6.5406,152.89,152.82,45.50196]
[1723228439532,28.84,152.9,152.84,0.12549]
[1723228439729,35.3803,152.9,152.84,0.12549]
[1723228440838,28.84,152.88,152.81,6.4688]
[1723228441054,28.84,152.86,152.81,6.4688]
[1723228441336,6.5436,152.82,152.79,16.2967]
[1723228441513,28.84,152.82,152.77,6.3649]
[1723228441714,35.3845,152.8,152.77,6.3649]
[1723228442115,28.84,152.8,152.77,6.3649]
[1723228442559,35.3847,152.8,152.77,6.3649]
[1723228442932,28.84,152.8,152.75,16.1778]
[1723228443935,28.84,152.82,152.75,16.1778]
[1723228444142,28.84,152.8,152.75,16.1778]
[1723228444568,35.3853,152.78,152.75,16.1778]
[1723228444737,28.84,152.76,152.73,6.1738]
[1723228445064,28.84,152.78,152.73,6.1738]
[1723228447551,28.84,152.76,152.71,16.3095]
[1723228447757,28.84,152.8,152.63,6.80383187]
[1723228447758,6.5476,152.73,152.69,6.1049]
[1723228448073,28.84,152.74,152.69,6.1049]
[1723228448074,28.84,152.72,152.69,6.1049]
[1723228448935,6.80669079,152.76,152.7,0.12549]
[1723228449143,28.84,152.78,152.7,46.81125357]
[1723228449366,35.3854,152.78,152.7,45.50196]
[1723228450082,28.84,152.76,152.7,45.50196]
[1723228451170,28.84,152.78,152.7,45.50196]
[1723228451369,28.84,152.78,152.72,0.12549]
[1723228451570,28.84,152.78,152.71,0.37647]
[1723228451773,28.84,152.78,152.72,0.25098]
[1723228451951,28.84,152.78,152.7,45.50196]
[1723228452356,28.84,152.76,152.7,45.50196]
[1723228452566,28.84,152.76,152.7,0.50196]
[1723228452761,35.3854,152.78,152.7,0.50196]
[1723228454172,35.3854,152.78,152.7,45.50196]